fUST/lending_fUST_20241006
["ID","MTS","AMOUNT","RATE_DAILY","PERIOD"]
[339951913,1728203444133,-500.0,0.00013698,2]
[339951914,1728203444146,-500.88022126,0.00013698,2]
[339951915,1728203444158,-572.01330198,0.00013698,2]
[339951916,1728203444169,-500.43334819,0.00013698,2]
[339951917,1728203444182,-500.0,0.00013698,2]
[339951918,1728203444194,-500.0,0.00013698,2]
[339951919,1728203444204,-505.26451234,0.00013698,2]
[339951920,1728203444214,-500.0,0.00013698,2]
[339951921,1728203444223,-500.0,0.00013698,2]
[339951922,1728203444233,-729.96,0.00013698,2]
[339951923,1728203444496,-500.17388393,0.00013698,2]
[339951924,1728203444512,-500.0,0.00013698,2]
[339951925,1728203444522,-500.0,0.00013698,2]
[339951926,1728203444533,-500.28841212,0.00013698,2]
[339951927,1728203444543,-500.40077475,0.00013698,2]
[339951928,1728203444554,-500.0,0.00013698,2]
[339951929,1728203444565,-503.4038465,0.00013698,2]
[339951930,1728203444577,-507.14,0.00013698,2]
[339951931,1728203444587,-468.8467608,0.00013698,2]
[339951932,1728203444596,-500.0,0.00013698,2]
[339951933,1728203444607,-500.0,0.00013698,2]
[339951934,1728203444619,-500.0,0.00013698,2]
[339951935,1728203444629,-501.33658526,0.00013698,2]
[339951936,1728203444642,-500.0,0.00013698,2]
[339951937,1728203444653,-500.0,0.00013698,2]
[339951938,1728203444664,-500.0,0.00013698,2]
[339951939,1728203444674,-500.0,0.00013698,2]
[339951940,1728203444684,-796.68,0.00013698,2]
[339951941,1728203444694,-196.38017691,0.00013698,2]
[339951942,1728203444704,-500.02248051,0.00013698,2]
[339951943,1728203444715,-500.0,0.00013698,2]
[339951944,1728203444725,-500.68188019,0.00013698,2]
[339951945,1728203444737,-500.0,0.00013698,2]
[339951946,1728203444750,-500.0,0.00013698,2]
[339951947,1728203444761,-500.0,0.00013698,2]
[339951948,1728203444772,-1199.29,0.00013698,2]
[339951949,1728203444785,-501.05691375,0.00013698,2]
[339951950,1728203444797,-500.0,0.00013698,2]
[339951951,1728203444807,-500.0,0.00013698,2]
[339951952,1728203444819,-500.0,0.00013698,2]
[339951953,1728203444829,-500.0,0.00013698,2]
[339951954,1728203444840,-781.76,0.00013698,2]
[339951955,1728203444850,-643.01,0.00013698,2]
[339951956,1728203444860,-500.0,0.00013698,2]
[339951957,1728203444872,-500.0,0.00013698,2]
[339951958,1728203444885,-500.0,0.00013698,2]
[339951959,1728203444896,-629.86,0.00013698,2]
[339951960,1728203444908,-1750.37,0.00013698,2]
[339951961,1728203444919,-500.0,0.00013698,2]
[339951962,1728203444929,-828.44,0.00013698,2]
[339951963,1728203444940,-500.0,0.00013698,2]
[339951964,1728203444950,-500.0,0.00013698,2]
[339951965,1728203444961,-500.0,0.00013698,2]
[339951966,1728203444972,-500.0,0.00013698,2]
[339951967,1728203444983,-500.0,0.00013698,2]
[339951968,1728203444992,-500.0,0.00013698,2]
[339951969,1728203445003,-500.0,0.00013698,2]
[339951970,1728203445015,-500.0,0.00013698,2]
[339951971,1728203445026,-500.0,0.00013698,2]
[339951972,1728203445039,-500.0,0.00013698,2]
[339951973,1728203445051,-613.54,0.00013698,2]
[339951974,1728203445061,-1899.86,0.00013698,2]
[339951975,1728203445072,-500.0,0.00013698,2]
[339951976,1728203445083,-500.0,0.00013698,2]
[339951977,1728203445094,-500.0,0.00013698,2]
[339951978,1728203445105,-500.0,0.00013698,2]
[339951979,1728203445116,-500.0,0.00013698,2]
[339951980,1728203445127,-500.0,0.00013698,2]
[339951981,1728203445138,-1109.5,0.00013698,2]
[339951982,1728203445148,-778.87,0.00013698,2]
[339951983,1728203445159,-500.0,0.00013698,2]
[339951984,1728203445170,-500.0,0.00013698,2]
[339951985,1728203445181,-500.0,0.00013698,2]
[339951986,1728203445192,-500.0,0.00013698,2]
[339951987,1728203445202,-500.0,0.00013698,2]
[339951988,1728203445212,-500.0,0.00013698,2]
[339951989,1728203445222,-500.0,0.00013698,2]
[339951990,1728203445232,-500.0,0.00013698,2]
[339951991,1728203445242,-500.0,0.00013698,2]
[339951992,1728203445252,-500.0,0.00013698,2]
[339951993,1728203445263,-500.0,0.00013698,2]
[339951994,1728203445274,-501.06973499,0.00013698,2]
[339951995,1728203445284,-500.0,0.00013698,2]
[339951996,1728203445294,-500.0,0.00013698,2]
[339951997,1728203445304,-500.0,0.00013698,2]
[339951998,1728203445316,-630.87,0.00013698,2]
[339951999,1728203445328,-500.0,0.00013698,2]
[339952000,1728203445338,-500.0,0.00013698,2]
[339952001,1728203445348,-500.16641195,0.00013698,2]
[339952002,1728203445357,-524.89231627,0.00013698,2]
[339952003,1728203445368,-826.09,0.00013698,2]
[339952004,1728203445377,-500.88609121,0.00013698,2]
[339952005,1728203445388,-500.0,0.00013698,2]
[339952006,1728203445400,-500.0,0.00013698,2]
[339952007,1728203445411,-609.29,0.00013698,2]
[339952008,1728203445422,-721.15,0.00013698,2]
[339952009,1728203445433,-500.0,0.00013698,2]
[339952010,1728203445444,-614.23699372,0.00013698,2]
[339952011,1728203445453,-500.0,0.00013698,2]
[339952012,1728203445464,-500.0,0.00013698,2]
[339952013,1728203445474,-500.0,0.00013698,2]
[339952014,1728203445485,-489.5,0.00013698,2]
[339952015,1728203445496,-500.0,0.00013698,2]
[339952016,1728203445506,-500.0,0.00013698,2]
[339952017,1728203445521,-644.49,0.00013698,2]
[339952018,1728203445531,-500.0,0.00013698,2]
[339952019,1728203445542,-500.0,0.00013698,2]
[339952020,1728203445554,-500.0,0.00013698,2]
[339952021,1728203445565,-677.76,0.00013698,2]
[339952022,1728203445575,-500.0,0.00013698,2]
[339952023,1728203445586,-500.0,0.00013698,2]
[339952024,1728203445598,-160.62675889,0.00013698,2]
[339952025,1728203445609,-504.95855062,0.00013698,2]
[339952026,1728203445620,-817.52,0.00013698,2]
[339952027,1728203445629,-500.0,0.00013698,2]
[339952028,1728203445638,-500.0,0.00013698,2]
[339952029,1728203445648,-500.0,0.00013698,2]
[339952030,1728203445659,-504.80501296,0.00013698,2]
[339952031,1728203445670,-500.0,0.00013698,2]
[339952032,1728203445680,-500.0,0.00013698,2]
[339952033,1728203445690,-642.41,0.00013698,2]
[339952034,1728203445701,-500.0,0.00013698,2]
[339952035,1728203445711,-732.7,0.00013698,2]
[339952036,1728203445721,-500.1134855,0.00013698,2]
[339952037,1728203445731,-561.6,0.00013698,2]
[339952038,1728203445742,-500.0,0.00013698,2]
[339952039,1728203445753,-502.06908527,0.00013698,2]
[339952040,1728203445764,-534.31,0.00013698,2]
[339952041,1728203445775,-500.0,0.00013698,2]
[339952042,1728203445787,-500.0,0.00013698,2]
[339952043,1728203445797,-887.17,0.00013698,2]
[339952044,1728203445808,-1086.36,0.00013698,2]
[339952045,1728203445820,-500.0,0.00013698,2]
[339952046,1728203445831,-333.49064629,0.00013698,2]
[339952047,1728203445842,-500.0,0.00013698,2]
[339952048,1728203445853,-500.0,0.00013698,2]
[339952049,1728203445865,-762.82,0.00013698,2]
[339952050,1728203445875,-5823.58,0.00013698,2]
[339952051,1728203445886,-500.0,0.00013698,2]
[339952052,1728203445896,-500.0,0.00013698,2]
[339952053,1728203445907,-500.0,0.00013698,2]
[339952054,1728203445917,-500.0,0.00013698,2]
[339952055,1728203445927,-500.0,0.00013698,2]
[339952056,1728203445936,-500.0,0.00013698,2]
[339952057,1728203445945,-500.0,0.00013698,2]
[339952058,1728203445955,-500.0,0.00013698,2]
[339952059,1728203445966,-500.0,0.00013698,2]
[339952060,1728203445976,-500.0,0.00013698,2]
[339952061,1728203445986,-500.0,0.00013698,2]
[339952062,1728203445995,-500.0,0.00013698,2]
[339952063,1728203446004,-500.0,0.00013698,2]
[339952064,1728203446015,-462.59769491,0.00013698,2]
[339952065,1728203446025,-500.13075812,0.00013698,2]
[339952066,1728203446037,-500.0,0.00013698,2]
[339952067,1728203446048,-978.91,0.00013698,2]
[339952068,1728203446059,-25221.65,0.00013698,2]
[339952069,1728203446070,-500.12894121,0.00013698,2]
[339952070,1728203446079,-500.0,0.00013698,2]
[339952071,1728203446089,-322.83127546,0.00013698,2]
[339952072,1728203446099,-500.0,0.00013698,2]
[339952073,1728203446109,-456.68981157,0.00013698,2]
[339952074,1728203446121,-375.03807384,0.00013698,2]
[339952075,1728203446132,-500.0,0.00013698,2]
[339952076,1728203446142,-4140.6,0.00013698,2]
[339952077,1728203446156,-500.0,0.00013698,2]
[339952078,1728203446166,-248.947626,0.00013698,2]
[339952079,1728203446177,-500.0,0.00013698,2]
[339952080,1728203446188,-500.0,0.00013698,2]
[339952081,1728203446199,-1484.9,0.00013698,2]
[339952083,1728203446210,-248.947626,0.00013698,2]
[339952084,1728203446220,-500.0,0.00013698,2]
[339952085,1728203446230,-500.0,0.00013698,2]
[339952086,1728203446241,-1069.38,0.00013698,2]
[339952087,1728203446253,-225.43395614,0.00013698,2]
[339952089,1728203446264,-500.45711522,0.00013698,2]
[339952091,1728203446276,-256.52886442,0.00013698,2]
[339952093,1728203446286,-535.74975535,0.00013698,2]
[339952095,1728203446295,-500.0,0.00013698,2]
[339952096,1728203446306,-500.0,0.00013698,2]
[339952097,1728203446316,-668.52,0.00013698,2]
[339952099,1728203446328,-151.0,0.00013698,2]
[339952102,1728203446339,-500.0,0.00013698,2]
[339952103,1728203446349,-500.0,0.00013698,2]
[339952105,1728203446358,-884.86,0.00013698,2]
[339952108,1728203446369,-500.0,0.00013698,2]
[339952109,1728203446378,-1095.71,0.00013698,2]
[339952111,1728203446387,-500.0,0.00013698,2]
[339952113,1728203446397,-500.0,0.00013698,2]
[339952115,1728203446407,-500.0,0.00013698,2]
[339952117,1728203446416,-500.0,0.00013698,2]
[339952119,1728203446425,-500.0,0.00013698,2]
[339952121,1728203446434,-500.0,0.00013698,2]
[339952123,1728203446443,-500.43271367,0.00013698,2]
[339952125,1728203446452,-500.0,0.00013698,2]
[339952127,1728203446462,-500.0,0.00013698,2]
[339952129,1728203446471,-500.0,0.00013698,2]
[339952131,1728203446481,-500.0,0.00013698,2]
[339952133,1728203446490,-500.0,0.00013698,2]
[339952135,1728203446499,-151.0,0.00013698,2]
[339952137,1728203446509,-500.0,0.00013698,2]
[339952139,1728203446518,-500.0,0.00013698,2]
[339952140,1728203446527,-500.94683024,0.00013698,2]
[339952141,1728203446539,-500.0,0.00013698,2]
[339952142,1728203446548,-500.0,0.00013698,2]
[339952143,1728203446557,-151.0,0.00013698,2]
[339952144,1728203446567,-500.0,0.00013698,2]
[339952145,1728203446576,-500.0,0.00013698,2]
[339952146,1728203446586,-500.0,0.00013698,2]
[339952147,1728203446595,-500.49235604,0.00013698,2]
[339952148,1728203446604,-500.0,0.00013698,2]
[339952149,1728203446613,-500.0,0.00013698,2]
[339952150,1728203446623,-500.0,0.00013698,2]
[339952152,1728203446632,-532.88,0.00013698,2]
[339952154,1728203446642,-520.80553612,0.00013698,2]
[339952156,1728203446651,-500.0,0.00013698,2]
[339952157,1728203446661,-500.0,0.00013698,2]
[339952159,1728203446671,-500.0,0.00013698,2]
[339952161,1728203446681,-1363.67,0.00013698,2]
[339952163,1728203446690,-500.0,0.00013698,2]
[339952165,1728203446700,-500.0,0.00013698,2]
[339952167,1728203446709,-151.0,0.00013698,2]
[339952169,1728203446719,-883.23,0.00013698,2]
[339952170,1728203446729,-151.0,0.00013698,2]
[339952171,1728203446739,-500.0,0.00013698,2]
[339952172,1728203446748,-500.0,0.00013698,2]
[339952173,1728203446757,-151.0,0.00013698,2]
[339952174,1728203446767,-523.94,0.00013698,2]
[339952175,1728203446777,-500.0,0.00013698,2]
[339952176,1728203446787,-500.0,0.00013698,2]
[339952177,1728203446795,-500.0,0.00013698,2]
[339952178,1728203446805,-151.0,0.00013698,2]
[339952179,1728203446814,-500.0,0.00013698,2]
[339952180,1728203446823,-500.0,0.00013698,2]
[339952181,1728203446833,-500.0,0.00013698,2]
[339952182,1728203446842,-564.87,0.00013698,2]
[339952183,1728203446852,-500.0,0.00013698,2]
[339952184,1728203446862,-500.0,0.00013698,2]
[339952185,1728203446873,-210.26578608,0.00013698,2]
[339952186,1728203446891,-500.54355701,0.00013698,2]
[339952187,1728203446902,-1396.27,0.00013698,2]
[339952188,1728203446913,-500.0,0.00013698,2]
[339952189,1728203446924,-543.91200214,0.00013698,2]
[339952190,1728203446934,-607.51552675,0.00013698,2]
[339952191,1728203446946,-500.0,0.00013698,2]
[339952192,1728203446958,-500.0,0.00013698,2]
[339952193,1728203446968,-2014.78,0.00013698,2]
[339952194,1728203446978,-500.0,0.00013698,2]
[339952195,1728203446987,-500.0,0.00013698,2]
[339952196,1728203446998,-500.0,0.00013698,2]
[339952197,1728203447007,-501.53991792,0.00013698,2]
[339952198,1728203447019,-151.0,0.00013698,2]
[339952199,1728203447030,-406.02063575,0.00013698,2]
[339952200,1728203447327,-93.97936425,0.00013698,2]
[339952201,1728203447338,-500.0,0.00013698,2]
[339952202,1728203447348,-500.0,0.00013698,2]
[339952203,1728203447358,-500.0,0.00013698,2]
[339952204,1728203447370,-500.0,0.00013698,2]
[339952205,1728203447381,-500.0,0.00013698,2]
[339952206,1728203447391,-500.0,0.00013698,2]
[339952207,1728203447401,-157.32010259,0.00013698,2]
[339952208,1728203447411,-504.8327858,0.00013698,2]
[339952209,1728203447421,-1190.98,0.00013698,2]
[339952210,1728203447432,-151.0,0.00013698,2]
[339952211,1728203447444,-500.0,0.00013698,2]
[339952212,1728203447454,-666.99,0.00013698,2]
[339952213,1728203447464,-655.32,0.00013698,2]
[339952214,1728203447475,-297.45774736,0.00013698,2]
[339952215,1728203448154,-202.54225264,0.00013698,2]
[339952216,1728203448165,-649.53,0.00013698,2]
[339952217,1728203448175,-851.71,0.00013698,2]
[339952218,1728203448185,-916.72,0.00013698,2]
[339952219,1728203448195,-500.0,0.00013698,2]
[339952220,1728203448205,-500.0,0.00013698,2]
[339952221,1728203448214,-500.0,0.00013698,2]
[339952222,1728203448225,-571.0,0.00013698,2]
[339952223,1728203448237,-500.0,0.00013698,2]
[339952224,1728203448247,-500.0,0.00013698,2]
[339952225,1728203448258,-42.86720891,0.00013698,2]
[339952226,1728203448280,-486.35279109,0.00013698,2]
[339952227,1728203448289,-136.99148793,0.00013698,2]
[339952228,1728203448304,-363.00851207,0.00013698,2]
[339952229,1728203448314,-500.0,0.00013698,2]
[339952230,1728203448324,-500.0,0.00013698,2]
[339952231,1728203448335,-500.0,0.00013698,2]
[339952232,1728203448346,-564.84,0.00013698,2]
[339952233,1728203448356,-341.569001,0.00013698,2]
[339952234,1728203448366,-729.2544755,0.00013698,2]
[339952235,1728203448384,-394.8555245,0.00013698,2]
[339952236,1728203448395,-500.0,0.00013698,2]
[339952237,1728203448405,-544.09,0.00013698,2]
[339952238,1728203448415,-500.0,0.00013698,2]
[339952239,1728203448425,-341.569001,0.00013698,2]
[339952240,1728203448434,-500.0,0.00013698,2]
[339952241,1728203448444,-651.09,0.00013698,2]
[339952242,1728203448454,-500.0,0.00013698,2]
[339952243,1728203448464,-500.0,0.00013698,2]
[339952244,1728203448473,-500.0,0.00013698,2]
[339952245,1728203448483,-500.0,0.00013698,2]
[339952246,1728203448492,-3349.13,0.00013698,2]
[339952247,1728203448502,-500.0,0.00013698,2]
[339952248,1728203448514,-328.09131018,0.00013698,2]
[339952249,1728203449235,-150.0,0.00013569,2]
[339952250,1728203449244,-1773.33566182,0.00013698,2]
[339952251,1728203449254,-500.0,0.00013698,2]
[339952252,1728203449264,-500.0,0.00013698,2]
[339952253,1728203449275,-2101.426972,0.00013698,2]
[339952254,1728203449285,-500.0,0.00013698,2]
[339952255,1728203449294,-500.0,0.00013698,2]
[339952256,1728203449304,-500.0,0.00013698,2]
[339952257,1728203449315,-151.0,0.00013698,2]
[339952258,1728203449325,-151.0,0.00013698,2]
[339952259,1728203449336,-500.0,0.00013698,2]
[339952260,1728203449346,-500.0,0.00013698,2]
[339952261,1728203449356,-2292.24,0.00013698,2]
[339952262,1728203449366,-500.0,0.00013698,2]
[339952263,1728203449376,-500.0,0.00013698,2]
[339952264,1728203449387,-500.0,0.00013698,2]
[339952265,1728203449397,-500.0,0.00013698,2]
[339952266,1728203449408,-500.0,0.00013698,2]
[339952267,1728203449419,-500.0,0.00013698,2]
[339952268,1728203449428,-585.53312283,0.00013698,2]
[339952269,1728203449438,-618.75,0.00013698,2]
[339952270,1728203449448,-500.0,0.00013698,2]
[339952271,1728203449459,-500.0,0.00013698,2]
[339952272,1728203449469,-500.0,0.00013698,2]
[339952273,1728203449481,-500.0,0.00013698,2]
[339952274,1728203449492,-1516.19,0.00013698,2]
[339952275,1728203449503,-500.0,0.00013698,2]
[339952276,1728203449515,-500.0,0.00013698,2]
[339952277,1728203449526,-500.0,0.00013698,2]
[339952278,1728203449536,-1139.89,0.00013698,2]
[339952279,1728203449547,-267.49661443,0.00013698,2]
[339952293,1728204329600,24900.0,0.00010112,2]
[339952294,1728204366859,224.442218,0.00010131,2]
[339952297,1728204566218,250.0,0.00010131,2]
[339952306,1728204631519,1325.7469724,0.00010194,2]
[339952320,1728204632597,-3000.0,0.00010673,2]
[339952321,1728204632607,-165.045885,0.00010752,2]
[339952322,1728204632619,-165.045885,0.00010782,2]
[339952323,1728204632630,-165.045885,0.00010811,2]
[339952324,1728204632642,-165.045885,0.00010841,2]
[339952325,1728204632652,-165.045885,0.0001087,2]
[339952326,1728204632662,-165.045885,0.000109,2]
[339952327,1728204632680,-165.045885,0.00010929,2]
[339952328,1728204632698,-165.045885,0.00010959,2]
[339952329,1728204632714,-165.045885,0.00010988,2]
[339952330,1728204632729,-165.045885,0.00011018,2]
[339952331,1728204632742,-165.045885,0.00011047,2]
[339952332,1728204632757,-165.045885,0.00011077,2]
[339952333,1728204632770,-165.045885,0.00011106,2]
[339952334,1728204632786,-165.045885,0.00011136,2]
[339952335,1728204632802,-165.045885,0.00011165,2]
[339952336,1728204632816,-165.045885,0.00011195,2]
[339952337,1728204632831,-165.045885,0.00011224,2]
[339952338,1728204632849,-165.045885,0.00011254,2]
[339952339,1728204632863,-165.045885,0.00011283,2]
[339952340,1728204632875,-165.045885,0.00011313,2]
[339952341,1728204632887,-300.0,0.00011529,2]
[339952342,1728204632900,-438.64724412,0.0001153,2]
[339952343,1728204632915,-300.0,0.0001153,2]
[339952344,1728204632928,-4480.51303148,0.0001153,2]
[339952367,1728204638890,-29730.93218585,0.0001153,2]
[339952369,1728204638900,-197.936857,0.00012,2]
[339952371,1728204638909,-420.0,0.00012663,2]
[339952373,1728204638919,-300.0,0.00012682,2]
[339952375,1728204638929,-153.0,0.00012741,2]
[339952377,1728204638938,-2810.64390663,0.000129,2]
[339952379,1728204638947,-2810.64390658,0.000129,2]
[339952381,1728204638956,-153.0,0.00013078,2]
[339952383,1728204638966,-153.0,0.00013078,2]
[339952385,1728204638975,-439.24567211,0.0001342,2]
[339952387,1728204638984,-1000.0,0.00013427,2]
[339952389,1728204638993,-1000.0,0.00013466,2]
[339952390,1728204639001,-1000.0,0.0001347,2]
[339952392,1728204639011,-1000.0,0.00013472,2]
[339952395,1728204639022,-359.005546,0.00013474,2]
[339952397,1728204639032,-1000.0,0.00013476,2]
[339952399,1728204639041,-1000.0,0.00013481,2]
[339952401,1728204639051,-1000.0,0.00013482,2]
[339952403,1728204639060,-1000.0,0.00013493,2]
[339952405,1728204639070,-1000.0,0.00013501,2]
[339952407,1728204639079,-1000.0,0.00013507,2]
[339952409,1728204639089,-1000.0,0.00013515,2]
[339952411,1728204639098,-2810.64390658,0.00013549,2]
[339952413,1728204639108,-514.57176425,0.00013554,2]
[339952415,1728204639117,-1000.0,0.00013567,2]
[339952417,1728204639126,-150.0,0.00013572,2]
[339952419,1728204639135,-525.0,0.00013572,2]
[339952421,1728204639144,-1229.584,0.00013572,2]
[339952423,1728204639153,-150.0,0.00013572,2]
[339952425,1728204639163,-1000.0,0.00013577,2]
[339952427,1728204639174,-1000.0,0.00013583,2]
[339952429,1728204639183,-1000.0,0.00013583,2]
[339952431,1728204639193,-1407.2025402,0.00013587,2]
[339952433,1728204639204,-1000.0,0.00013596,2]
[339952435,1728204639214,-300.0,0.000136,4]
[339952437,1728204639226,-153.278941,0.000136,2]
[339952439,1728204639235,-1000.0,0.0001362,2]
[339952441,1728204639247,-1000.0,0.00013634,2]
[339952442,1728204639257,-359.005546,0.00013642,2]
[339952443,1728204639274,-46822.5365809,0.00013658,2]
[339952444,1728204639285,-20769.1364034,0.00013658,2]
[339952445,1728204639303,-1000.0,0.00013664,2]
[339952446,1728204639314,-1000.0,0.00013667,2]
[339952447,1728204639323,-140467.609743,0.00013668,2]
[339952448,1728204639331,-62307.4092103,0.00013668,2]
[339952449,1728204639341,-29925.30299665,0.00013669,2]
[339952464,1728204640837,-25978.54,0.000136,2]
[339952465,1728204640848,-63719.77016525,0.00013669,2]
[339952466,1728204640857,-41538.2728069,0.00013669,2]
[339952467,1728204640870,-1000.0,0.00013672,2]
[339952468,1728204640881,-208.313,0.00013673,2]
[339952469,1728204640892,-151.0,0.00013678,2]
[339952470,1728204640903,-151.0,0.00013678,2]
[339952471,1728204640914,-183.667746,0.00013678,2]
[339952472,1728204640924,-151.0,0.00013678,2]
[339952473,1728204640935,-151.0,0.00013678,2]
[339952474,1728204640946,-151.0,0.00013678,2]
[339952475,1728204640958,-151.0,0.00013678,2]
[339952476,1728204640968,-151.0,0.00013678,2]
[339952477,1728204640978,-124614.818421,0.00013678,2]
[339952478,1728204640988,-8825.15278085,0.00013687,2]
[339952479,1728204641004,-11943.98362255,0.00013687,2]
[339952480,1728204641014,-924.832578,0.00013688,2]
[339952481,1728204641023,-924.832578,0.00013688,2]
[339952482,1728204641032,-224.052863,0.00013688,2]
[339952483,1728204641042,-224.052863,0.00013688,2]
[339952484,1728204641052,-1891.284275,0.00013688,2]
[339952485,1728204641061,-1891.284275,0.00013688,2]
[339952486,1728204641071,-151.0,0.00013688,2]
[339952487,1728204641080,-151.0,0.00013688,2]
[339952488,1728204641090,-151.0,0.00013688,2]
[339952489,1728204641102,-151.0,0.00013688,2]
[339952490,1728204641112,-151.0,0.00013688,2]
[339952491,1728204641124,-151.0,0.00013688,2]
[339952492,1728204641137,-151.0,0.00013688,2]
[339952493,1728204641147,-151.0,0.00013688,2]
[339952494,1728204641158,-151.0,0.00013688,2]
[339952495,1728204641169,-307.412101,0.00013688,2]
[339952496,1728204641181,-307.412101,0.00013688,2]
[339952497,1728204641193,-41538.2728069,0.00013688,2]
[339952498,1728204641205,-408.0,0.0001369,2]
[339952499,1728204641216,-6047.51145219,0.00013697,2]
[339952500,1728204641227,-23392.06714417,0.00013698,2]
[339952501,1728204641237,-5787.88544431,0.00013698,2]
[339952502,1728204641246,-500.0,0.00013698,2]
[339952503,1728204641257,-537.62478487,0.00013698,2]
[339952504,1728204641273,-500.0,0.00013698,2]
[339952505,1728204641284,-498.33632979,0.00013698,2]
[339952506,1728204641296,-500.0,0.00013698,2]
[339952507,1728204641309,-500.0,0.00013698,2]
[339952508,1728204641320,-528.25435093,0.00013698,2]
[339952509,1728204641331,-317.94393542,0.00013698,2]
[339952510,1728204641342,-500.0,0.00013698,2]
[339952511,1728204641352,-500.0,0.00013698,2]
[339952512,1728204641365,-500.0,0.00013698,2]
[339952513,1728204641376,-223.32645391,0.00013698,2]
[339952514,1728204641388,-228.00785573,0.00013698,2]
[339952515,1728204641399,-500.0,0.00013698,2]
[339952516,1728204641409,-500.0,0.00013698,2]
[339952517,1728204641420,-465.24620174,0.00013698,2]
[339952518,1728204641431,-500.0,0.00013698,2]
[339952519,1728204641443,-500.0,0.00013698,2]
[339952520,1728204641454,-500.0,0.00013698,2]
[339952521,1728204641468,-500.0,0.00013698,2]
[339952522,1728204641482,-500.0,0.00013698,2]
[339952523,1728204641493,-500.0,0.00013698,2]
[339952524,1728204641505,-500.0,0.00013698,2]
[339952525,1728204641516,-500.0,0.00013698,2]
[339952526,1728204641526,-500.0,0.00013698,2]
[339952527,1728204641539,-200.19653636,0.00013698,2]
[339952528,1728204641548,-500.0,0.00013698,2]
[339952529,1728204641560,-500.0,0.00013698,2]
[339952530,1728204641570,-500.0,0.00013698,2]
[339952531,1728204641582,-500.0,0.00013698,2]
[339952532,1728204641592,-393.3138861,0.00013698,2]
[339952533,1728204641602,-500.0,0.00013698,2]
[339952534,1728204641612,-500.0,0.00013698,2]
[339952535,1728204641622,-734.73732249,0.00013698,2]
[339952536,1728204641632,-734.73732249,0.00013698,2]
[339952537,1728204641644,-734.73732249,0.00013698,2]
[339952538,1728204641656,-734.73732249,0.00013698,2]
[339952539,1728204641667,-734.73732249,0.00013698,2]
[339952540,1728204641680,-734.73732249,0.00013698,2]
[339952541,1728204641691,-734.73732249,0.00013698,2]
[339952542,1728204641701,-734.73732249,0.00013698,2]
[339952543,1728204641711,-734.73732249,0.00013698,2]
[339952544,1728204641721,-734.73732249,0.00013698,2]
[339952545,1728204641732,-734.73732249,0.00013698,2]
[339952546,1728204641743,-734.73732249,0.00013698,2]
[339952547,1728204641753,-734.73732249,0.00013698,2]
[339952548,1728204641763,-500.0,0.00013698,2]
[339952549,1728204641772,-1072.71649082,0.00013698,2]
[339952550,1728204641783,-500.0,0.00013698,2]
[339952551,1728204641792,-502.65638944,0.00013698,2]
[339952552,1728204641802,-500.0,0.00013698,2]
[339952553,1728204641811,-616.12208824,0.00013698,2]
[339952554,1728204641822,-500.0,0.00013698,2]
[339952555,1728204641832,-500.0,0.00013698,2]
[339952556,1728204641843,-594.01,0.00013698,2]